fUSD/lending_fUSD_20250906
["ID","MTS","AMOUNT","RATE_DAILY","PERIOD"]
[383835241,1757139040788,-150.0,0.00046238,30]
[383835243,1757139040798,-541.44,0.00046238,30]
[383835245,1757139040807,-150.0,0.00046238,30]
[383835247,1757139040817,-174.35,0.00046238,30]
[383835249,1757139040826,-409.88,0.00046238,30]
[383835251,1757139040836,-150.0,0.00046238,30]
[383835253,1757139040846,-1911.63,0.00046238,30]
[383835255,1757139040855,-802.0,0.00046238,30]
[383835257,1757139040865,-166.62,0.00046238,30]
[383835259,1757139040874,-150.0,0.00046238,30]
[383835261,1757139040883,-470.72,0.00046238,30]
[383835263,1757139040893,-150.0,0.00046238,30]
[383835265,1757139040903,-541.44,0.00046238,30]
[383835267,1757139040913,-150.0,0.00046238,30]
[383835269,1757139040922,-150.0,0.00046238,30]
[383835271,1757139040932,-174.35,0.00046238,30]
[383835273,1757139040942,-409.88,0.00046238,30]
[383835275,1757139040954,-150.0,0.00046238,30]
[383835277,1757139040966,-541.44,0.00046238,30]
[383835280,1757139040980,-802.0,0.00046238,30]
[383835282,1757139040990,-166.62,0.00046238,30]
[383835284,1757139040999,-541.44,0.00046238,30]
[383835286,1757139041010,-470.72,0.00046238,30]
[383835288,1757139041020,-174.35,0.00046238,30]
[383835290,1757139041030,-150.0,0.00046238,30]
[383835292,1757139041040,-409.88,0.00046238,30]
[383835294,1757139041050,-802.0,0.00046238,30]
[383835296,1757139041059,-166.62,0.00046238,30]
[383835298,1757139041068,-409.88,0.00046238,30]
[383835300,1757139041078,-541.44,0.00046238,30]
[383835302,1757139041087,-470.72,0.00046238,30]
[383835304,1757139041096,-150.0,0.00046238,30]
[383835306,1757139041106,-802.0,0.00046238,30]
[383835308,1757139041115,-174.35,0.00046238,30]
[383835310,1757139041125,-541.44,0.00046238,30]
[383835312,1757139041135,-166.62,0.00046238,30]
[383835314,1757139041144,-409.88,0.00046238,30]
[383835316,1757139041153,-541.44,0.00046238,30]
[383835318,1757139041164,-470.72,0.00046238,30]
[383835320,1757139041173,-150.0,0.00046238,30]
[383835322,1757139041182,-541.44,0.00046238,30]
[383835324,1757139041192,-802.0,0.00046238,30]
[383835326,1757139041201,-166.62,0.00046238,30]
[383835328,1757139041211,-541.44,0.00046238,30]
[383835330,1757139041220,-174.35,0.00046238,30]
[383835332,1757139041230,-409.88,0.00046238,30]
[383835334,1757139041240,-150.0,0.00046238,30]
[383835336,1757139041250,-802.0,0.00046238,30]
[383835338,1757139041260,-409.88,0.00046238,30]
[383835340,1757139041269,-166.62,0.00046238,30]
[383835342,1757139041279,-174.35,0.00046238,30]
[383835344,1757139041287,-150.0,0.00046238,30]
[383835346,1757139041297,-802.0,0.00046238,30]
[383835349,1757139041314,-166.62,0.00046238,30]
[383835351,1757139041324,-150.0,0.00046238,30]
[383835353,1757139041334,-174.35,0.00046238,30]
[383835355,1757139041344,-802.0,0.00046238,30]
[383835357,1757139041354,-802.0,0.00046238,30]
[383835358,1757139041363,-174.35,0.00046238,30]
[383835360,1757139041378,-150.0,0.00046238,30]
[383835363,1757139041388,-174.35,0.00046238,30]
[383835365,1757139041398,-174.35,0.00046238,30]
[383835367,1757139041407,-429.8,0.00046238,30]
[383835369,1757139041417,-150.0,0.00046238,30]
[383835371,1757139041426,-151.07,0.00046238,30]
[383835373,1757139041436,-150.0,0.00046238,30]
[383835375,1757139041448,-164.67,0.00046238,30]
[383835377,1757139041458,-150.0,0.00046238,30]
[383835379,1757139041468,-401.55,0.00046238,30]
[383835381,1757139041477,-150.0,0.00046238,30]
[383835383,1757139041486,-150.0,0.00046238,30]
[383835384,1757139041497,-150.0,0.00046238,30]
[383835385,1757139041507,-150.0,0.00046238,30]
[383835386,1757139041516,-150.0,0.00046238,30]
[383835387,1757139041526,-150.0,0.00046238,30]
[383835388,1757139041535,-1214.0,0.000463,2]
[383835389,1757139041545,-500.0,0.00046301,5]
[383835390,1757139041555,-310.60839701,0.00046301,5]
[383835391,1757139041564,-684.0,0.00046301,5]
[383835392,1757139041574,-211.77691621,0.00046301,5]
[383835394,1757139041583,-593.04,0.0004645,30]
[383835396,1757139041593,-597.4,0.00046456,30]
[383835398,1757139041602,-847.25009171,0.00046466,2]
[383835400,1757139041612,-500.0,0.00046575,5]
[383835402,1757139041621,-684.0,0.00046575,5]
[383835404,1757139041631,-900.0,0.000466,2]
[383835406,1757139041640,-563.08911572,0.000466,2]
[383835408,1757139041650,-250.0,0.000466,2]
[383835410,1757139041660,-1110.52190107,0.000466,2]
[383835412,1757139041670,-199.0,0.00046698,7]
[383835414,1757139041680,-19999.99,0.00046737,2]
[383835416,1757139041691,-10997.36,0.00046737,30]
[383835418,1757139041702,-847.25009171,0.00046847,2]
[383835420,1757139041711,-500.0,0.00046849,5]
[383835422,1757139041721,-684.0,0.00046849,5]
[383835424,1757139041730,-847.25009171,0.00047013,2]
[383835426,1757139041741,-6918.76530681,0.00047113,3]
[383835428,1757139041750,-508.16424665,0.00047123,5]
[383835430,1757139041760,-684.0,0.00047123,5]
[383835432,1757139041770,-257.39848438,0.00047289,15]
[383835434,1757139041780,-2414.69886968,0.00047304,120]
[383835436,1757139041790,-847.25009175,0.0004731,2]
[383835438,1757139041799,-600.0,0.00047325,30]
[383835440,1757139041809,-4006.21701781,0.00047355,15]
[383835442,1757139041818,-697.14134,0.0004738,37]
[383835444,1757139041828,-199.0,0.00047383,9]
[383835447,1757139041838,-684.0,0.00047397,5]
[383835449,1757139041847,-152.8095644,0.00047397,2]
[383835451,1757139041857,-1264.24136897,0.00047442,25]
[383835453,1757139041867,-1723.11,0.00047542,2]
[383835455,1757139041877,-37564.02,0.00047542,2]
[383835457,1757139041886,-2290.35,0.00047542,2]
[383835459,1757139041899,-151.29,0.00047542,120]
[383835461,1757139041909,-999.99,0.00047542,2]
[383835463,1757139041919,-9999.99,0.00047542,2]
[383835465,1757139041928,-9999.99,0.00047542,2]
[383835467,1757139041937,-1854.86,0.00047542,2]
[383835469,1757139041947,-2470.25,0.00047542,2]
[383835471,1757139041957,-9259.98,0.00047542,2]
[383835473,1757139041967,-1572.95,0.00047542,2]
[383835475,1757139041976,-40144.78,0.00047542,30]
[383835477,1757139041986,-499.99,0.00047542,2]
[383835479,1757139041995,-150.99,0.00047542,2]
[383835481,1757139042005,-303.58,0.00047542,2]
[383835483,1757139042016,-9999.99,0.00047542,2]
[383835485,1757139042026,-340.98,0.00047542,2]
[383835487,1757139042035,-1436.63,0.00047542,2]
[383835489,1757139042045,-159.25742452,0.00047552,2]
[383835491,1757139042055,-507.41184492,0.00047552,2]
[383835493,1757139042064,-6918.76530681,0.00047597,3]
[383835495,1757139042073,-532.87562025,0.000476,2]
[383835497,1757139042082,-201.75418834,0.000476,2]
[383835499,1757139042093,-697.14134,0.000476,38]
[383835501,1757139042102,-600.0,0.00047607,30]
[383835503,1757139042112,-684.0,0.00047671,5]
[383835505,1757139042121,-500.0,0.00047873,3]
[383835507,1757139042131,-150.2607409,0.00047877,2]
[383835509,1757139042142,-697.14135,0.0004788,39]
[383835511,1757139042151,-6918.76530681,0.0004789,4]
[383835513,1757139042160,-5000.0,0.00047899,120]
[383835515,1757139042170,-318.76252488,0.00047899,30]
[383835517,1757139042179,-8315.5854326,0.000479,2]
[383835519,1757139042189,-1724.8200173,0.000479,2]
[383835521,1757139042198,-600.0,0.000479,30]
[383835523,1757139042208,-684.0,0.00047945,5]
[383835525,1757139042218,-500.0,0.00047973,10]
[383835527,1757139042227,-13837.5306136,0.00047979,4]
[383835529,1757139042236,-27675.0612272,0.0004798,4]
[383835531,1757139042245,-34593.8265341,0.00047989,4]
[383835533,1757139042256,-6918.76530681,0.0004799,4]
[383835535,1757139042265,-500.0,0.00047995,30]
[383835537,1757139042274,-200.0,0.00047999,120]
[383835539,1757139042283,-175.31114126,0.00047999,120]
[383835541,1757139042293,-600.0,0.00047999,120]
[383835543,1757139042302,-600.0,0.00047999,120]
[383835545,1757139042311,-600.0,0.00047999,120]
[383835547,1757139042320,-600.0,0.00047999,120]
[383835549,1757139042330,-600.0,0.00047999,120]
[383835551,1757139042339,-600.0,0.00047999,120]
[383835553,1757139042348,-600.0,0.00047999,120]
[383835555,1757139042359,-600.0,0.00047999,120]
[383835558,1757139042371,-520.0,0.00047999,120]
[383835559,1757139042383,-549.79551537,0.00047999,120]
[383835562,1757139042392,-151.0,0.00047999,120]
[383835563,1757139042402,-2500.0,0.00047999,120]
[383835566,1757139042415,-151.0,0.00047999,120]
[383835568,1757139042425,-200.0,0.00047999,120]
[383835570,1757139042435,-160.0,0.00047999,120]
[383835572,1757139042445,-151.0,0.00047999,120]
[383835574,1757139042455,-250.0,0.00047999,120]
[383835576,1757139042466,-2500.0,0.00047999,120]
[383835578,1757139042476,-500.0,0.00047999,120]
[383835580,1757139042485,-151.0,0.00047999,120]
[383835582,1757139042495,-250.0,0.00047999,120]
[383835584,1757139042504,-160.0,0.00047999,120]
[383835586,1757139042514,-500.0,0.00047999,120]
[383835588,1757139042524,-151.0,0.00047999,120]
[383835590,1757139042533,-250.0,0.00047999,120]
[383835592,1757139042543,-160.0,0.00047999,120]
[383835594,1757139042553,-151.82786432,0.00047999,120]
[383835596,1757139042563,-500.0,0.00047999,120]
[383835598,1757139042572,-250.0,0.00047999,120]
[383835600,1757139042582,-151.0,0.00047999,120]
[383835602,1757139042592,-160.0,0.00047999,120]
[383835604,1757139042601,-500.0,0.00047999,120]
[383835606,1757139042611,-250.0,0.00047999,120]
[383835608,1757139042620,-151.0,0.00047999,120]
[383835610,1757139042630,-160.0,0.00047999,120]
[383835612,1757139042639,-250.0,0.00047999,120]
[383835614,1757139042649,-250.0,0.00047999,120]
[383835616,1757139042658,-500.0,0.00047999,120]
[383835619,1757139042668,-160.0,0.00047999,120]
[383835621,1757139042678,-250.0,0.00047999,120]
[383835623,1757139042687,-564.30141647,0.00047999,120]
[383835625,1757139042696,-250.0,0.00047999,120]
[383835627,1757139042705,-250.0,0.00047999,120]
[383835629,1757139042715,-151.0,0.00047999,120]
[383835631,1757139042724,-151.0,0.00047999,120]
[383835633,1757139042734,-500.0,0.00047999,120]
[383835635,1757139042743,-250.0,0.00047999,120]
[383835637,1757139042752,-151.0,0.00047999,120]
[383835639,1757139042762,-151.0,0.00047999,120]
[383835641,1757139042771,-500.0,0.00047999,120]
[383835643,1757139042781,-151.50990684,0.00047999,120]
[383835645,1757139042790,-151.0,0.00047999,120]
[383835647,1757139042799,-500.0,0.00047999,120]
[383835649,1757139042809,-250.0,0.00047999,120]
[383835651,1757139042818,-250.0,0.00047999,120]
[383835653,1757139042827,-151.0,0.00047999,120]
[383835655,1757139042837,-500.0,0.00047999,120]
[383835657,1757139042847,-250.0,0.00047999,120]
[383835659,1757139042856,-151.0,0.00047999,120]
[383835661,1757139042866,-155.9940727,0.00047999,120]
[383835663,1757139042875,-250.0,0.00047999,120]
[383835666,1757139042886,-500.0,0.00047999,120]
[383835668,1757139042895,-151.0,0.00047999,120]
[383835671,1757139042905,-250.0,0.00047999,120]
[383835673,1757139042915,-151.8384098,0.00047999,120]
[383835674,1757139042924,-500.0,0.00047999,120]
[383835677,1757139042935,-250.0,0.00047999,120]
[383835679,1757139042944,-500.0,0.00047999,120]
[383835681,1757139042953,-500.0,0.00047999,120]
[383835683,1757139042965,-500.0,0.00047999,120]
[383835685,1757139042974,-500.0,0.00047999,120]
[383835687,1757139042984,-250.0,0.00047999,120]
[383835689,1757139042993,-500.0,0.00047999,120]
[383835691,1757139043003,-500.0,0.00047999,120]
[383835693,1757139043012,-500.0,0.00047999,120]
[383835695,1757139043021,-500.0,0.00047999,120]
[383835697,1757139043031,-500.0,0.00047999,120]
[383835699,1757139043040,-500.0,0.00047999,120]
[383835701,1757139043050,-500.0,0.00047999,120]
[383835703,1757139043059,-500.0,0.00047999,120]
[383835705,1757139043069,-500.0,0.00047999,120]
[383835707,1757139043079,-500.0,0.00047999,120]
[383835709,1757139043088,-500.0,0.00047999,120]
[383835711,1757139043098,-250.0,0.00047999,120]
[383835713,1757139043107,-500.0,0.00047999,120]
[383835715,1757139043116,-500.0,0.00047999,120]
[383835717,1757139043126,-500.0,0.00047999,120]
[383835719,1757139043135,-250.0,0.00047999,120]
[383835721,1757139043145,-500.0,0.00047999,120]
[383835723,1757139043154,-500.0,0.00047999,120]
[383835725,1757139043163,-500.0,0.00047999,120]
[383835727,1757139043173,-500.0,0.00047999,120]
[383835730,1757139043182,-250.0,0.00047999,120]
[383835733,1757139043192,-600.0,0.00047999,120]
[383835752,1757139043359,-500.0,0.00047999,120]
[383835755,1757139043370,-500.0,0.00047999,120]
[383835757,1757139043381,-500.0,0.00047999,120]
[383835759,1757139043391,-250.0,0.00047999,120]
[383835761,1757139043401,-500.0,0.00047999,120]
[383835763,1757139043411,-600.0,0.00047999,120]
[383835764,1757139043421,-500.0,0.00047999,120]
[383835765,1757139043430,-500.0,0.00047999,120]
[383835766,1757139043440,-600.0,0.00047999,120]
[383835767,1757139043449,-500.0,0.00047999,120]
[383835768,1757139043458,-500.0,0.00047999,120]
[383835769,1757139043467,-285.78128394,0.00047999,120]
[383835770,1757139043476,-500.0,0.00047999,120]
[383835771,1757139043485,-600.0,0.00047999,120]
[383835772,1757139043495,-600.0,0.00047999,120]
[383835773,1757139043504,-500.0,0.00047999,120]
[383835775,1757139043514,-500.0,0.00047999,120]
[383835777,1757139043523,-151.0,0.00047999,120]
[383835779,1757139043533,-250.0,0.00047999,120]
[383835781,1757139043542,-500.0,0.00047999,120]
[383835783,1757139043552,-200.0,0.00047999,120]
[383835785,1757139043562,-151.0,0.00047999,120]
[383835787,1757139043572,-250.0,0.00047999,120]
[383835789,1757139043582,-500.0,0.00047999,120]
[383835791,1757139043591,-207.4,0.00047999,120]
[383835793,1757139043601,-151.0,0.00047999,120]
[383835795,1757139043610,-250.0,0.00047999,120]
[383835797,1757139043620,-300.0,0.00047999,120]
[383835799,1757139043629,-215.0738,0.00047999,120]
[383835801,1757139043638,-250.0,0.00047999,120]
[383835803,1757139043647,-151.0,0.00047999,120]
[383835805,1757139043656,-320.1565679,0.00047999,120]
[383835807,1757139043666,-223.0315306,0.00047999,120]
[383835809,1757139043675,-380.30727402,0.00047999,120]
[383835811,1757139043684,-151.0,0.00047999,120]
[383835813,1757139043693,-231.28369723,0.00047999,120]
[383835815,1757139043703,-500.0,0.00047999,120]
[383835817,1757139043713,-151.0,0.00047999,120]
[383835820,1757139043723,-239.84119403,0.00047999,120]
[383835821,1757139043732,-500.0,0.00047999,120]
[383835823,1757139043742,-151.0,0.00047999,120]
[383835825,1757139043751,-248.71531821,0.00047999,120]
[383835827,1757139043761,-500.0,0.00047999,120]
[383835829,1757139043770,-151.0,0.00047999,120]
[383835831,1757139043781,-257.91778498,0.00047999,120]
[383835833,1757139043790,-500.0,0.00047999,120]
[383835835,1757139043800,-6888.0,0.00047999,120]
[383835837,1757139043810,-267.46074303,0.00047999,120]
[383835839,1757139043819,-151.0,0.00047999,120]
[383835841,1757139043828,-500.0,0.00047999,120]
[383835843,1757139043838,-1915.98786885,0.00047999,120]
[383835845,1757139043847,-277.35679052,0.00047999,120]
[383835847,1757139043857,-500.0,0.00047999,120]
[383835849,1757139043866,-151.0,0.00047999,120]
[383835851,1757139043875,-151.0,0.00047999,120]
[383835853,1757139043884,-287.61899177,0.00047999,120]
[383835855,1757139043894,-151.0,0.00047999,120]
[383835857,1757139043903,-151.0,0.00047999,120]
[383835859,1757139043913,-156.587,0.00047999,120]
[383835861,1757139043923,-298.26089446,0.00047999,120]
[383835863,1757139043933,-151.0,0.00047999,120]
[383835865,1757139043943,-151.0,0.00047999,120]
[383835867,1757139043952,-162.380719,0.00047999,120]
[383835869,1757139043962,-309.29654756,0.00047999,120]
[383835871,1757139043971,-151.0,0.00047999,120]
[383835873,1757139043981,-151.0,0.00047999,120]
[383835875,1757139043990,-168.3888056,0.00047999,120]
[383835877,1757139044002,-320.74051982,0.00047999,120]
[383835879,1757139044012,-151.0,0.00047999,120]
[383835881,1757139044022,-151.0,0.00047999,120]
[383835883,1757139044032,-174.61919141,0.00047999,120]
[383835885,1757139044043,-125151.8903936,0.00048,120]
[383835887,1757139044052,-440.54670754,0.00048,30]
[383835889,1757139044062,-317.36524323,0.00048,30]
[383835891,1757139044072,-256.745467,0.00048,120]
[383835893,1757139044082,-1259.93198409,0.00048,7]
[383835895,1757139044090,-200.0,0.00048,7]
[383835897,1757139044100,-166.0,0.00048,120]
[383835899,1757139044109,-1195.17,0.00048,14]
[383835901,1757139044119,-576.18,0.00048,30]
[383835904,1757139044128,-199.0,0.00048068,11]
[383835906,1757139044138,-3386.1978297,0.00048087,2]
[383835908,1757139044147,-500.0,0.00048197,30]
[383835910,1757139044156,-684.0,0.00048219,5]
[383835912,1757139044166,-155.82462853,0.0004835,2]
[383835914,1757139044176,-459.98,0.00048356,120]
[383835915,1757139044185,-697.14134,0.0004838,42]
[383835918,1757139044194,-1000.0,0.00048421,3]
[383835919,1757139044204,-684.0,0.00048493,5]
[383835921,1757139044213,-1195.17,0.000485,14]
[383835924,1757139044223,-1000.0,0.00048521,10]
[383835926,1757139044233,-500.0,0.0004857,30]
[383835928,1757139044243,-346.10407904,0.000486,120]
[383835930,1757139044252,-236.40690906,0.000487,120]
[383835932,1757139044262,-576.18,0.000487,30]
[383835934,1757139044271,-199.0,0.00048753,13]
[383835936,1757139044280,-684.0,0.00048767,5]
[383835938,1757139044290,-209.26260174,0.0004879,7]
[383835940,1757139044299,-15745.09502048,0.000488,120]
[383835942,1757139044308,-19952.09034975,0.000488,120]
[383835944,1757139044318,-30353.8839796,0.000488,120]
[383835946,1757139044327,-500.0,0.0004888,120]
[383835948,1757139044336,-697.14135,0.0004888,44]
[383835950,1757139044346,-445.13355268,0.00048885,120]
[383835952,1757139044355,-188.78,0.00048916,120]
[383835954,1757139044364,-463.60515785,0.00048968,3]
[383835956,1757139044376,-253.67754018,0.00049,120]
[383835958,1757139044386,-488.08428686,0.00049,120]
[383835960,1757139044396,-343.25294458,0.00049,30]
[383835962,1757139044405,-1195.17,0.00049,14]
[383835964,1757139044415,-684.0,0.00049041,5]
[383835966,1757139044426,-1500.0,0.00049068,10]
[383835968,1757139044436,-150.0,0.00049154,120]
[383835970,1757139044445,-500.0,0.00049246,30]
[383835972,1757139044455,-576.18,0.000493,30]
[383835974,1757139044465,-684.0,0.00049315,5]
[383835976,1757139044475,-1000.0,0.00049315,120]
[383835978,1757139044484,-254.000001,0.00049315,120]
[383835980,1757139044494,-257.39848438,0.00049318,15]
[383835982,1757139044503,-697.14134,0.0004938,46]
[383835984,1757139044513,-5520.0,0.000494,2]
[383835986,1757139044522,-151.0,0.000494,120]
[383835988,1757139044531,-150.0,0.00049428,120]
[383835990,1757139044541,-199.0,0.00049438,15]
[383835992,1757139044551,-1195.17,0.000495,60]
[383835994,1757139044560,-684.0,0.00049589,5]
[383835996,1757139044569,-500.0,0.00049599,30]
[383835998,1757139044578,-2000.0,0.00049616,10]
[383836000,1757139044587,-500.0,0.00049652,30]
[383836002,1757139044597,-150.0,0.00049702,120]
[383836004,1757139044606,-500.0,0.00049704,30]
[383836006,1757139044616,-768.0,0.00049779,60]
[383836008,1757139044625,-412.78021855,0.000498,30]
[383836010,1757139044635,-1000.0,0.000498,120]
[383836012,1757139044644,-684.0,0.00049863,5]
[383836014,1757139044654,-250.0,0.00049976,120]
[383836016,1757139044664,-43069.78678541,0.0004999,2]
[383836018,1757139044673,-181.83368656,0.00049999,120]
[383836020,1757139044683,-643.4688515,0.00049999,120]
[383836022,1757139044693,-500.0,0.00049999,31]
[383836024,1757139044703,-322.99467022,0.00049999,31]
[383836026,1757139044712,-500.0,0.00049999,31]
[383836028,1757139044722,-500.0,0.00049999,31]
[383836030,1757139044731,-300.0,0.0005,120]
[383836032,1757139044741,-17706.43697229,0.0005,120]
[383836034,1757139044751,-4565.41199265,0.0005,120]
[383836036,1757139044760,-1144.45136546,0.0005,2]
[383836038,1757139044770,-556.57398268,0.0005,120]
[383836040,1757139044779,-200.0,0.0005,120]
[383836042,1757139044788,-750.0,0.0005,120]
[383836044,1757139044798,-1214.27182754,0.0005,2]
[383836046,1757139044808,-576.18,0.0005,30]
[383836048,1757139044817,-500.0,0.00050031,60]
[383836050,1757139044827,-292.53314922,0.00050123,17]
[383836053,1757139044837,-684.0,0.00050136,5]
[383836055,1757139044846,-619.49963244,0.00050164,10]
[383836057,1757139044855,-600.0,0.00050215,60]
[383836059,1757139044864,-684.0,0.0005041,5]
[383836061,1757139044874,-600.0,0.00050417,60]
[383836062,1757139044883,-684.0,0.00050684,5]
[383836064,1757139044893,-500.0,0.00050818,60]
[383836066,1757139044903,-684.0,0.00050958,5]
[383836068,1757139044912,-4006.21701781,0.00050991,15]
[383836070,1757139044922,-1195.17,0.00051,60]
[383836072,1757139044932,-154.89,0.00051007,2]
[383836074,1757139044942,-1123.698,0.00051197,92]
[383836076,1757139044952,-5513.0,0.000512,120]
[383836078,1757139044962,-698.83606105,0.00051232,5]
[383836080,1757139044972,-500.0,0.00051283,60]
[383836082,1757139044981,-4221.0,0.00051332,7]
[383836084,1757139044991,-600.0,0.00051341,60]
[383836087,1757139045002,-257.39848438,0.00051347,15]
[383836088,1757139045012,-500.0,0.00051452,2]
[383836090,1757139045022,-161.0,0.000516,120]
[383836093,1757139045033,-500.0,0.0005163,60]
[383836095,1757139045043,-318.76252488,0.00051771,45]
[383836096,1757139045052,-280.18825448,0.0005188,120]
[383836099,1757139045061,-211.46305545,0.00051999,60]
[383836101,1757139045071,-1795.98079813,0.00052,120]
[383836103,1757139045080,-391.34265813,0.000521,2]
[383836105,1757139045091,-186.81079677,0.00052668,2]
[383836107,1757139045101,-500.0,0.00052706,60]
[383836109,1757139045111,-4000.0,0.00052709,8]
[383836111,1757139045120,-8315.5854326,0.00052754,2]
[383836113,1757139045130,-5513.0,0.000529,120]
[383836115,1757139045140,-600.0,0.00052923,60]
[383836117,1757139045150,-579.64626134,0.00053,2]
[383836119,1757139045160,-5000.0,0.00053,120]
[383836121,1757139045170,-576.18,0.00053,30]
[383836123,1757139045179,-175.70608037,0.00053072,2]
[383836125,1757139045189,-151.0,0.000532,120]
[383836127,1757139045198,-449.11450347,0.0005331,2]
[383836128,1757139045208,-500.0,0.00053372,60]
[383836129,1757139045217,-257.39848438,0.00053376,15]
[383836130,1757139045227,-150.0,0.00053435,120]
[383836131,1757139045236,-600.0,0.00053488,60]
[383836132,1757139045246,-233.28,0.000537,7]
[383836133,1757139045255,-1127.0,0.00053712,30]
[383836134,1757139045263,-196.37293873,0.00053764,60]
[383836135,1757139045273,-168.0,0.00053967,2]
[383836136,1757139045282,-10000.0,0.00054,120]
[383836138,1757139045291,-500.0,0.00054024,60]
[383836140,1757139045300,-377.52,0.00054038,120]
[383836142,1757139045310,-995.5,0.00054163,120]
[383836144,1757139045319,-600.0,0.0005425,60]
[383836146,1757139045329,-273.0,0.00054299,120]
[383836148,1757139045338,-4006.21701781,0.00054627,15]
[383836150,1757139045348,-154.89,0.0005465,2]
[383836152,1757139045357,-150.32140436,0.00054694,120]
[383836154,1757139045367,-500.0,0.00054731,60]
[383836156,1757139045376,-600.0,0.00054752,60]
[383836158,1757139045386,-1075.0,0.00054757,60]
[383836160,1757139045397,-1540.0,0.00054767,120]
[383836162,1757139045406,-150.0,0.00054793,120]
[383836164,1757139045415,-401.1440272,0.00054794,120]
[383836166,1757139045425,-402.53062111,0.00054794,120]
[383836168,1757139045434,-403.02187662,0.00054794,120]
[383836170,1757139045443,-400.0,0.00054794,120]
[383836172,1757139045452,-400.0,0.00054794,120]
[383836174,1757139045462,-401.76111576,0.00054794,120]
[383836176,1757139045471,-400.0,0.00054794,120]
[383836178,1757139045480,-400.0,0.00054794,120]
[383836180,1757139045490,-402.65722631,0.00054794,120]
[383836182,1757139045500,-400.0,0.00054794,120]
[383836184,1757139045509,-411.76660259,0.00054794,120]
[383836186,1757139045519,-414.47325978,0.00054794,120]
[383836188,1757139045528,-400.0,0.00054794,120]
[383836190,1757139045537,-400.0,0.00054794,120]
[383836192,1757139045546,-400.82343667,0.00054794,120]
[383836194,1757139045554,-400.0,0.00054794,120]
[383836196,1757139045563,-400.0,0.00054794,120]
[383836198,1757139045573,-401.46553936,0.00054794,120]
[383836200,1757139045583,-400.0,0.00054794,120]
[383836202,1757139045592,-400.0,0.00054794,120]
[383836204,1757139045601,-400.0,0.00054794,120]
[383836206,1757139045611,-400.0,0.00054794,120]
[383836208,1757139045622,-403.05609603,0.00054794,120]
[383836210,1757139045631,-400.0,0.00054794,120]
[383836212,1757139045641,-402.06913911,0.00054794,120]
[383836214,1757139045651,-401.56046561,0.00054794,120]
[383836216,1757139045661,-409.94741161,0.00054794,120]
[383836218,1757139045671,-401.33778397,0.00054794,120]
[383836220,1757139045681,-400.0,0.00054794,120]
[383836222,1757139045690,-403.62178983,0.00054794,120]
[383836224,1757139045700,-403.64941042,0.00054794,120]
[383836226,1757139045710,-400.0,0.00054794,120]
[383836228,1757139045720,-208.42730606,0.00054794,120]
[383836230,1757139045730,-403.24224863,0.00054794,120]
[383836232,1757139045740,-403.26088383,0.00054794,120]
[383836234,1757139045749,-407.30413362,0.00054794,120]
[383836236,1757139045759,-400.0,0.00054794,120]
[383836238,1757139045768,-400.0,0.00054794,7]
[383836240,1757139045777,-400.0,0.00054794,120]